fUST/lending_fUST_20240816
["ID","MTS","AMOUNT","RATE_DAILY","PERIOD"]
[335058044,1723800638510,-775.331082,0.000119,2]
[335058045,1723800638520,-151.0,0.000119,2]
[335058046,1723800638529,-151.0,0.000119,2]
[335058047,1723800638539,-775.331082,0.00011999,2]
[335058048,1723800638549,-775.331082,0.00011999,2]
[335058049,1723800638558,-151.0,0.00011999,2]
[335058050,1723800638568,-151.0,0.00011999,2]
[335058051,1723800638577,-420.0,0.00012042,2]
[335058052,1723800638586,-420.0,0.00012054,2]
[335058053,1723800638595,-775.331082,0.0001211,2]
[335058054,1723800638604,-775.331082,0.0001211,2]
[335058055,1723800638614,-151.0,0.0001211,2]
[335058056,1723800638624,-151.0,0.0001211,2]
[335058057,1723800638635,-1500.0,0.00012163,2]
[335058058,1723800638645,-1752.49576635,0.00012219,3]
[335058059,1723800638658,-1625.93624443,0.00012219,2]
[335058060,1723800638668,-8838.68500502,0.00012219,2]
[335058061,1723800638677,-2710.86673964,0.00012219,2]
[335058062,1723800638687,-1599.6889557,0.00012219,2]
[335058063,1723800638698,-2165.20291982,0.00012629,2]
[335058064,1723800638709,-775.331082,0.00012629,2]
[335058065,1723800638718,-775.331082,0.00012629,2]
[335058066,1723800638728,-151.0,0.00012629,2]
[335058067,1723800638739,-151.0,0.00012629,2]
[335058068,1723800638749,-12102.44120076,0.00012769,2]
[335058069,1723800638760,-151.0,0.0001277,2]
[335058070,1723800638769,-174.114901,0.0001277,2]
[335058071,1723800638778,-184.805641,0.0001277,2]
[335058072,1723800638788,-184.805641,0.0001277,2]
[335058073,1723800638797,-281.40791,0.0001277,2]
[335058074,1723800638807,-281.40791,0.0001277,2]
[335058075,1723800638816,-246.627427,0.0001277,2]
[335058076,1723800638825,-246.627427,0.0001277,2]
[335058077,1723800638834,-216.632926,0.0001277,2]
[335058078,1723800638844,-267.314639,0.0001277,2]
[335058079,1723800638854,-267.314639,0.0001277,2]
[335058080,1723800638863,-775.331082,0.0001277,2]
[335058081,1723800638873,-775.331082,0.0001277,2]
[335058082,1723800638882,-151.0,0.0001277,2]
[335058083,1723800638892,-151.0,0.0001277,2]
[335058084,1723800638901,-2141.83182523,0.00012779,2]
[335058085,1723800638911,-7010.23526088,0.00012779,2]
[335058086,1723800638920,-601.69102478,0.00012898,2]
[335058087,1723800638929,-201.90108991,0.00012898,2]
[335058088,1723800638939,-206.52794541,0.00012898,2]
[335058089,1723800638949,-176.06665181,0.00012898,2]
[335058090,1723800638959,-809.65861321,0.00012898,2]
[335058091,1723800638968,-181.68348154,0.00012898,2]
[335058092,1723800638977,-255.10499635,0.00012898,2]
[335058093,1723800638987,-543.83358768,0.00012898,2]
[335058094,1723800638996,-246.627427,0.000129,2]
[335058095,1723800639005,-246.627427,0.000129,2]
[335058096,1723800639015,-267.314639,0.000129,2]
[335058097,1723800639024,-267.314639,0.000129,2]
[335058098,1723800639034,-565.19032269,0.000129,2]
[335058099,1723800639044,-404.2385044,0.00012934,2]
[335058100,1723800639055,-308.13531118,0.00012934,2]
[335058101,1723800639064,-154.79103211,0.00012934,2]
[335058102,1723800639073,-728.43490027,0.00012934,2]
[335058103,1723800639083,-196.71565749,0.00012934,2]
[335058104,1723800639092,-154.95827322,0.00012934,2]
[335058105,1723800639102,-154.85826827,0.00012934,2]
[335058106,1723800639111,-154.7968632,0.00012934,2]
[335058107,1723800639121,-151.0,0.00012971,2]
[335058108,1723800639130,-151.0,0.00012971,2]
[335058109,1723800639139,-342.47979758,0.00012971,2]
[335058110,1723800639150,-156.46495656,0.00012971,2]
[335058111,1723800639159,-154.89891945,0.00012971,2]
[335058112,1723800639169,-156.95829692,0.00012971,2]
[335058113,1723800639178,-256.15180176,0.00012971,2]
[335058114,1723800639187,-197.43956767,0.00012971,2]
[335058115,1723800639197,-269.21476476,0.00012971,2]
[335058116,1723800639206,-160.36529473,0.00012971,2]
[335058117,1723800639215,-180.67948358,0.00012971,2]
[335058118,1723800639225,-152.757952,0.00012985,2]
[335058119,1723800639234,-184.805641,0.00012985,2]
[335058120,1723800639243,-184.805641,0.00012985,2]
[335058121,1723800639252,-197.19992737,0.00012985,2]
[335058122,1723800639262,-154.79103211,0.00012985,2]
[335058123,1723800639271,-157.02043595,0.00012985,2]
[335058124,1723800639283,-242.18427054,0.00012985,2]
[335058125,1723800639293,-210.13067206,0.00012985,2]
[335058126,1723800639302,-520.31494712,0.00012985,2]
[335058127,1723800639311,-154.91035021,0.00012985,2]
[335058128,1723800639320,-281.40791,0.00012989,2]
[335058129,1723800639330,-281.40791,0.00012989,2]
[335058130,1723800639339,-775.331082,0.00012989,2]
[335058131,1723800639348,-775.331082,0.00012989,2]
[335058132,1723800639358,-151.0,0.00012989,2]
[335058133,1723800639367,-193.07026,0.00012989,2]
[335058134,1723800639376,-152.217269,0.00012999,2]
[335058135,1723800639385,-42091.60746691,0.00013,2]
[335058136,1723800639396,-246.627427,0.00013025,2]
[335058137,1723800639406,-246.627427,0.00013025,2]
[335058138,1723800639416,-267.314639,0.00013025,2]
[335058139,1723800639427,-267.314639,0.00013025,2]
[335058140,1723800639436,-184.805641,0.00013027,2]
[335058141,1723800639446,-184.805641,0.00013027,2]
[335058142,1723800639455,-281.40791,0.00013027,2]
[335058143,1723800639465,-281.40791,0.00013027,2]
[335058144,1723800639474,-246.627427,0.00013027,2]
[335058145,1723800639483,-246.627427,0.00013027,2]
[335058146,1723800639492,-267.314639,0.00013027,2]
[335058147,1723800639501,-267.314639,0.00013027,2]
[335058148,1723800639511,-775.331082,0.00013027,2]
[335058149,1723800639521,-775.331082,0.00013027,2]
[335058150,1723800639530,-151.0,0.00013027,2]
[335058151,1723800639540,-51335.4757884,0.00013028,2]
[335058152,1723800639550,-184.2285852,0.00013051,2]
[335058153,1723800639559,-184.805641,0.00013217,2]
[335058154,1723800639569,-184.805641,0.00013217,2]
[335058155,1723800639578,-587.0,0.00013233,2]
[335058156,1723800639588,-587.0,0.00013259,2]
[335058157,1723800639597,-205.44316841,0.00013477,2]
[335058158,1723800639606,-151.0,0.00013487,2]
[335058159,1723800639615,-151.0,0.00013487,2]
[335058160,1723800639624,-151.0,0.00013487,2]
[335058161,1723800639634,-151.0,0.00013487,2]
[335058162,1723800639644,-151.0,0.00013487,2]
[335058163,1723800639654,-151.0,0.00013487,2]
[335058164,1723800639663,-151.0,0.00013487,2]
[335058165,1723800639673,-151.0,0.00013487,2]
[335058166,1723800639682,-281.40791,0.00013496,2]
[335058167,1723800639691,-281.40791,0.00013496,2]
[335058168,1723800639701,-309.67712516,0.00013496,2]
[335058169,1723800639710,-180.26438025,0.00013496,2]
[335058170,1723800639720,-199.929493,0.00013497,2]
[335058171,1723800639730,-151.0,0.00013586,2]
[335058172,1723800639740,-151.0,0.00013586,2]
[335058173,1723800639751,-151.0,0.00013586,2]
[335058174,1723800639762,-151.0,0.00013586,2]
[335058175,1723800639772,-151.0,0.00013586,2]
[335058176,1723800639782,-246.627427,0.00013586,2]
[335058178,1723800639791,-246.627427,0.00013586,2]
[335058180,1723800639801,-267.314639,0.00013586,2]
[335058182,1723800639810,-267.314639,0.00013586,2]
[335058184,1723800639820,-151.0,0.00013589,2]
[335058185,1723800639829,-151.0,0.00013589,2]
[335058187,1723800639839,-151.0,0.00013589,2]
[335058188,1723800639848,-151.0,0.00013589,2]
[335058190,1723800639858,-154.90570431,0.00013596,2]
[335058192,1723800639869,-256.16671508,0.00013596,2]
[335058194,1723800639878,-900.17079923,0.00013596,2]
[335058195,1723800639888,-184.805641,0.00013596,2]
[335058196,1723800639898,-184.805641,0.00013596,2]
[335058197,1723800639909,-151.0,0.00013597,2]
[335058198,1723800639919,-184.805641,0.00013678,2]
[335058199,1723800639931,-184.805641,0.00013678,2]
[335058200,1723800639940,-281.40791,0.00013678,2]
[335058202,1723800639950,-281.40791,0.00013678,2]
[335058204,1723800639960,-246.627427,0.00013678,2]
[335058206,1723800639970,-246.627427,0.00013678,2]
[335058208,1723800639980,-267.314639,0.00013678,2]
[335058210,1723800639990,-267.314639,0.00013678,2]
[335058212,1723800639999,-810.98237385,0.00013688,2]
[335058213,1723800640009,-411.4742545,0.00013688,2]
[335058214,1723800640020,-151.0,0.00013688,2]
[335058215,1723800640029,-250.061284,0.00013688,2]
[335058216,1723800640039,-152.809004,0.00013688,2]
[335058217,1723800640048,-223.44653164,0.00013697,2]
[335058218,1723800640058,-151.0,0.00013697,2]
[335058219,1723800640067,-359.81799328,0.00013698,2]
[335058220,1723800640077,-608.26637384,0.00013698,2]
[335058222,1723800640086,-3000.0,0.00013699,2]
[335058224,1723800640096,-1000.0,0.00013699,2]
[335058225,1723800640105,-1000.0,0.00013699,2]
[335058226,1723800640114,-1000.0,0.00013699,2]
[335058227,1723800640123,-1000.0,0.00013699,2]
[335058228,1723800640133,-1000.0,0.00013699,2]
[335058229,1723800640142,-1000.0,0.00013699,2]
[335058230,1723800640152,-1000.0,0.00013699,2]
[335058231,1723800640161,-1000.0,0.00013699,2]
[335058233,1723800640172,-1000.0,0.00013699,2]
[335058234,1723800640182,-1000.0,0.00013699,2]
[335058235,1723800640192,-1000.0,0.00013699,2]
[335058236,1723800640201,-1000.0,0.00013699,2]
[335058237,1723800640210,-1000.0,0.00013699,2]
[335058238,1723800640220,-1000.0,0.00013699,2]
[335058239,1723800640229,-1000.0,0.00013699,2]
[335058240,1723800640239,-1000.0,0.00013699,2]
[335058241,1723800640249,-1000.0,0.00013699,2]
[335058243,1723800640258,-1000.0,0.00013699,2]
[335058244,1723800640268,-1000.0,0.00013699,2]
[335058245,1723800640278,-1000.0,0.00013699,2]
[335058246,1723800640291,-1000.0,0.00013699,2]
[335058247,1723800640300,-1000.0,0.00013699,2]
[335058248,1723800640309,-1000.0,0.00013699,2]
[335058249,1723800640318,-1000.0,0.00013699,2]
[335058250,1723800640329,-1000.0,0.00013699,2]
[335058252,1723800640339,-1000.0,0.00013699,2]
[335058254,1723800640349,-1000.0,0.00013699,2]
[335058256,1723800640361,-1000.0,0.00013699,2]
[335058258,1723800640374,-1000.0,0.00013699,2]
[335058260,1723800640383,-1000.0,0.00013699,2]
[335058262,1723800640392,-596.744854,0.00013699,2]
[335058264,1723800640402,-500.0,0.00013699,2]
[335058266,1723800640411,-500.0,0.00013699,2]
[335058268,1723800640421,-500.0,0.00013699,2]
[335058270,1723800640430,-500.0,0.00013699,2]
[335058272,1723800640439,-360.26117908,0.00013699,2]
[335058274,1723800640451,-775.331082,0.00013699,2]
[335058277,1723800640461,-775.331082,0.00013699,2]
[335058279,1723800640471,-151.0,0.00013699,2]
[335058281,1723800640481,-223.37756888,0.00013792,2]
[335058283,1723800640491,-151.0,0.00013961,2]
[335058285,1723800640500,-151.0,0.00013961,2]
[335058287,1723800640510,-177.031325,0.00013975,2]
[335058289,1723800640520,-177.031325,0.00014125,2]
[335058291,1723800640529,-151.0,0.00014125,2]
[335058293,1723800640538,-162.830916,0.00014247,2]
[335058295,1723800640547,-184.805641,0.00014256,2]
[335058297,1723800640557,-184.805641,0.00014256,2]
[335058299,1723800640567,-51335.4757884,0.00014509,2]
[335058301,1723800640576,-775.331082,0.00014509,2]
[335058303,1723800640586,-775.331082,0.00014509,2]
[335058305,1723800640595,-151.0,0.00014509,2]
[335058307,1723800640604,-246.627427,0.00014519,2]
[335058309,1723800640613,-246.627419,0.00014519,2]
[335058310,1723800640622,-267.314639,0.00014519,2]
[335058312,1723800640631,-267.31463,0.00014519,2]
[335058314,1723800640640,-933.51163948,0.00014519,2]
[335058316,1723800640650,-823.0,0.00014543,2]
[335058318,1723800640660,-823.0,0.00014585,2]
[335058320,1723800640669,-155.17489998,0.00015477,2]
[335058322,1723800640678,-432.0,0.00015981,2]
[335058324,1723800640687,-1152.0,0.00016043,2]
[335058327,1723800640698,-10882.30170196,0.00018,2]
[335058329,1723800640708,-565.19032263,0.00018672,2]
[335058331,1723800640718,-214.0,0.000195,10]
[335058333,1723800640727,-707.00309338,0.00020333,2]
[335058335,1723800640737,-177.031325,0.00024242,7]
[335058337,1723800640746,-151.0,0.00024242,7]
[335058339,1723800640756,-281.40791,0.00024242,7]
[335058341,1723800640765,-281.40791,0.00024242,7]
[335058343,1723800640775,-775.331082,0.00024242,7]
[335058345,1723800640784,-775.331078,0.00024242,7]
[335058347,1723800640794,-9654.55565372,0.00024242,2]
[335058349,1723800640803,-151.0,0.00024242,7]
[335058351,1723800640812,-1079.01384529,0.00024455,2]
[335058353,1723800640821,-565.19032263,0.0002451,2]
[335058355,1723800640831,-182.91876161,0.00024571,2]
[335058357,1723800640841,-184.805641,0.0002769,7]
[335058359,1723800640851,-184.805641,0.0002769,7]
[335058361,1723800640860,-281.40791,0.0002769,7]
[335058363,1723800640869,-281.40791,0.0002769,7]
[335058365,1723800640879,-895.55920844,0.00029062,2]
[335058367,1723800640888,-306.0,0.00029616,2]
[335058369,1723800640898,-51335.4757884,0.0002988,3]
[335058371,1723800640909,-21604.46782733,0.0002989,2]
[335058373,1723800640919,-3000.0,0.000299,2]
[335058375,1723800640929,-3000.0,0.0002991,2]
[335058377,1723800640939,-3000.0,0.0002992,2]
[335058379,1723800640948,-3000.0,0.0002993,2]
[335058381,1723800640959,-177.031322,0.0002994,7]
[335058383,1723800640969,-151.0,0.0002994,7]
[335058384,1723800640978,-3000.0,0.0002994,2]
[335058386,1723800640988,-184.805641,0.0002994,7]
[335058388,1723800640997,-184.805649,0.0002994,7]
[335058390,1723800641007,-281.40791,0.0002994,7]
[335058392,1723800641016,-281.407904,0.0002994,7]
[335058394,1723800641026,-3000.0,0.0002995,2]
[335058396,1723800641036,-3000.0,0.0002996,2]
[335058398,1723800641045,-5883.783883,0.0002997,2]
[335058400,1723800641055,-565.19032263,0.00030348,2]
[335058402,1723800641065,-207.4367972,0.00030438,2]
[335058404,1723800641075,-207.4367972,0.00030438,2]
[335058406,1723800641086,-207.4367972,0.00030438,2]
[335058409,1723800641096,-153.0,0.00030438,2]
[335058410,1723800641105,-153.0,0.00030438,2]
[335058412,1723800641115,-207.4367972,0.00030438,2]
[335058414,1723800641125,-207.4367972,0.00030438,2]
[335058428,1723800641250,-413.3837494,0.00030438,2]
[335058430,1723800641260,-153.0,0.00030438,2]
[335058432,1723800641270,-1336.83667739,0.00031226,2]
[335058434,1723800641279,-198.886339,0.00031229,7]
[335058436,1723800641291,-3882.42,0.00031232,4]
[335058438,1723800641301,-3882.42,0.00031232,4]
[335058440,1723800641310,-3882.42,0.00031232,4]
[335058442,1723800641320,-3882.42,0.00031232,4]
[335058444,1723800641330,-3882.42,0.00031232,4]
[335058446,1723800641339,-3882.42,0.00031232,4]
[335058448,1723800641349,-3882.42,0.00031232,4]
[335058450,1723800641358,-3882.42,0.00031232,4]
[335058452,1723800641369,-3882.42,0.00031232,4]
[335058454,1723800641379,-3882.42,0.00031232,4]
[335058456,1723800641388,-3882.42,0.00031232,4]
[335058458,1723800641398,-3882.42,0.00031232,4]
[335058461,1723800641410,-3882.42,0.00031232,4]
[335058463,1723800641420,-153.0,0.00031233,2]
[335058465,1723800641430,-153.0,0.00031233,2]
[335058467,1723800641439,-3882.42,0.0003124,4]
[335058469,1723800641448,-3882.42,0.0003124,4]
[335058471,1723800641458,-505.12022929,0.00031242,2]
[335058473,1723800641467,-3882.42,0.00031242,4]
[335058475,1723800641477,-3882.42,0.00031242,4]
[335058477,1723800641486,-19677.29951691,0.00031243,21]
[335058479,1723800641495,-73145.95176827,0.00031243,28]
[335058481,1723800641505,-3882.42,0.00031244,4]
[335058483,1723800641515,-3882.42,0.00031244,4]
[335058485,1723800641524,-3882.42,0.00031244,4]
[335058487,1723800641534,-3882.42,0.00031244,4]
[335058489,1723800641544,-3882.42,0.00031244,4]
[335058491,1723800641556,-3882.42,0.00031244,4]
[335058493,1723800641565,-3882.54717532,0.00031244,4]
[335058495,1723800641574,-153.0,0.0003126,2]
[335058497,1723800641584,-153.0,0.0003126,2]
[335058499,1723800641593,-153.0,0.0003126,2]
[335058501,1723800641602,-153.0,0.0003126,2]
[335058503,1723800641611,-153.0,0.0003126,2]
[335058505,1723800641621,-153.0,0.0003126,2]
[335058507,1723800641630,-200.0,0.00031273,2]
[335058509,1723800641639,-200.0,0.00031273,2]
[335058511,1723800641648,-170.09579056,0.00031273,5]
[335058513,1723800641658,-158.07,0.000313,14]
[335058515,1723800641669,-5007.33,0.000313,14]
[335058517,1723800641678,-259.18894282,0.00031351,2]
[335058519,1723800641687,-564832.44125196,0.00031351,7]
[335058568,1723800642147,-202.51016093,0.00012898,2]
[335058570,1723800642157,-309.52024362,0.00012934,2]
[335058572,1723800642167,-156.68978589,0.00012971,2]
[335058574,1723800642176,-361.17981927,0.00012991,2]
[335058576,1723800642188,-173.40696669,0.00012991,2]
[335058578,1723800642197,-4424.53,0.000313,14]
[335058580,1723800642207,-9560.97699464,0.00031351,7]
[335058582,1723800642216,-22043.08058319,0.00031351,7]
[335058584,1723800642226,-6044.59356258,0.00031351,30]
[335058586,1723800642235,-160.56535763,0.00031351,30]
[335058588,1723800642245,-150.0,0.00031351,14]
[335058590,1723800642254,-235.28,0.00031351,14]
[335058592,1723800642263,-11550.02268888,0.00031351,30]
[335059036,1723800646617,-7266.89010383,0.00031351,30]
[335059038,1723800646627,-18740.77405291,0.00031351,7]
[335059040,1723800646637,-5876.11309875,0.00031351,120]
[335059041,1723800646647,-426.83130471,0.00031351,2]
[335059042,1723800646657,-200.0,0.00031373,5]
[335059043,1723800646666,-200.0,0.000315,30]
[335059044,1723800646675,-153.0,0.00031644,2]
[335059045,1723800646684,-153.0,0.00031644,2]
[335059046,1723800646694,-153.0,0.00031644,2]
[335059047,1723800646704,-153.0,0.00031644,2]
[335059048,1723800646713,-604.38852177,0.000318,2]
[335059049,1723800646830,-291.17068662,0.000318,2]
[335059050,1723800646840,-153.0,0.00032192,2]
[335059051,1723800646849,-153.0,0.00032192,2]
[335059052,1723800646859,-153.0,0.00032192,2]
[335059053,1723800646869,-153.0,0.00032192,2]
[335059054,1723800646878,-153.0,0.00032329,2]
[335059055,1723800646888,-153.0,0.00032329,2]
[335059056,1723800646898,-153.0,0.00032329,2]
[335059058,1723800646910,-153.0,0.00032329,2]
[335059060,1723800646920,-153.0,0.00032329,2]
[335059061,1723800646929,-207.4367972,0.00032329,2]
[335059063,1723800646940,-153.0,0.00032329,2]
[335059065,1723800646949,-207.4367972,0.00032329,2]
[335059067,1723800646958,-207.4367972,0.00032329,2]
[335059069,1723800646968,-207.4367972,0.00032329,2]
[335059071,1723800646978,-307.1350843,0.00032603,2]
[335059073,1723800646988,-400.0,0.00032642,2]
[335059075,1723800646999,-400.0,0.00032742,5]
[335059077,1723800647008,-589.1675126,0.00032904,2]
[335059079,1723800647018,-150.0,0.00032914,2]
[335059081,1723800647028,-1413.0,0.00032914,2]
[335059083,1723800647038,-207.4367972,0.00033151,2]
[335059085,1723800647048,-312.0606148,0.00033151,2]
[335059087,1723800647059,-153.0,0.00033151,2]
[335059090,1723800647070,-153.0,0.00033151,2]
[335059092,1723800647082,-153.0,0.00033151,2]
[335059094,1723800647095,-153.0,0.00033151,2]
[335059096,1723800647105,-594.37,0.00033716,3]
[335059098,1723800647115,-294.8692653,0.00033726,2]
[335059115,1723800647126,-315.6059435,0.00033726,2]
[335059118,1723800647295,-213.7764045,0.00033726,2]
[335059120,1723800647305,-217.1421715,0.00034247,2]
[335059122,1723800647314,-153.0,0.00034247,2]
[335059124,1723800647324,-153.0,0.00034247,2]
[335059126,1723800647334,-153.0,0.00034247,2]
[335059128,1723800647344,-895.55920839,0.00034537,2]
[335059131,1723800647355,-600.0,0.00034646,2]
[335059133,1723800647366,-150.0,0.00034646,2]
[335059135,1723800647376,-5007.33,0.000347,14]
[335059136,1723800647385,-600.0,0.00034746,5]
[335059139,1723800647395,-1000.0,0.000348,30]
[335059140,1723800647404,-4424.53,0.000348,14]
[335059143,1723800647414,-2129.20636841,0.00035,30]
[335059145,1723800647424,-414.7863426,0.00035068,2]
[335059147,1723800647435,-207.4367972,0.00035068,2]
[335059149,1723800647445,-153.0,0.00035068,2]
[335059151,1723800647455,-153.0,0.00035068,2]
[335059153,1723800647465,-306.0,0.00035068,2]
[335059155,1723800647475,-153.0,0.00035068,2]
[335059157,1723800647486,-153.0,0.00035068,2]
[335059159,1723800647496,-207.4367972,0.00035068,2]
[335059161,1723800647506,-207.4367972,0.00035068,2]
[335059163,1723800647516,-153.0,0.00035068,2]
[335059165,1723800647526,-207.4367972,0.00035068,2]
[335059167,1723800647536,-207.4367972,0.00035068,2]
[335059169,1723800647546,-207.1750418,0.00035068,2]
[335059171,1723800647556,-294.8692654,0.00035068,2]
[335059173,1723800647566,-294.8692653,0.00035068,2]
[335059175,1723800647576,-294.8692653,0.00035068,2]
[335059177,1723800647586,-294.8692653,0.00035068,2]
[335059179,1723800647595,-294.8692653,0.00035068,2]
[335059181,1723800647604,-153.0,0.00035068,2]
[335059183,1723800647614,-153.0,0.00035068,2]
[335059185,1723800647623,-153.0,0.00035068,2]
[335059187,1723800647633,-153.0,0.00035068,2]
[335059189,1723800647643,-294.8692653,0.00035068,2]
[335059191,1723800647652,-153.0,0.00035068,2]
[335059193,1723800647662,-153.0,0.00035068,2]
[335059195,1723800647672,-307.6604179,0.00035068,2]
[335059197,1723800647681,-153.0,0.00035068,2]
[335059199,1723800647691,-326.4661838,0.00035068,2]
[335059201,1723800647701,-207.4367972,0.00035068,2]
[335059203,1723800647710,-207.4367972,0.00035068,2]
[335059205,1723800647720,-207.4367972,0.00035068,2]
[335059207,1723800647730,-207.4367972,0.00035068,2]
[335059209,1723800647739,-1188.74,0.00035086,3]
[335059211,1723800647751,-162.862662,0.00035616,120]
[335059213,1723800647761,-591.3952096,0.00035616,2]
[335059215,1723800647770,-207.4367972,0.0003589,2]
[335059217,1723800647781,-309.381955,0.0003589,2]
[335059219,1723800647791,-207.4367972,0.00036027,2]
[335059221,1723800647801,-207.4367972,0.00036027,2]
[335059223,1723800647810,-153.2679443,0.00036164,2]
[335059225,1723800647819,-153.0,0.00036164,2]
[335059227,1723800647829,-565.19032263,0.00036186,2]
[335059229,1723800647839,-207.4367972,0.00036986,2]
[335059231,1723800647850,-207.4367972,0.00036986,2]
[335059233,1723800647860,-416.7024978,0.00036986,2]
[335059235,1723800647871,-153.0,0.00036986,2]
[335059237,1723800647880,-457.7874469,0.00036986,2]
[335059239,1723800647890,-200.0,0.00036987,2]
[335059242,1723800647900,-800.0,0.00037087,5]
[335059244,1723800647910,-895.55920839,0.00037275,2]
[335059246,1723800647920,-294.8692653,0.00037534,2]
[335059248,1723800647930,-294.8692653,0.00037534,2]
[335059250,1723800647939,-294.8692653,0.00037534,2]
[335059252,1723800647948,-294.8692653,0.00037534,2]
[335059254,1723800647959,-294.8692653,0.00037534,2]
[335059256,1723800647968,-294.8692653,0.00037534,2]
[335059258,1723800647978,-294.8692653,0.00037534,2]
[335059260,1723800647988,-294.8692653,0.00037534,2]
[335059262,1723800647998,-311.30232248,0.00037574,5]
[335059264,1723800648008,-306.0,0.00037808,2]
[335059266,1723800648018,-153.0,0.00037808,2]
[335059268,1723800648027,-153.0,0.00037808,2]
[335059270,1723800648036,-153.0,0.00037808,2]
[335059272,1723800648049,-153.0,0.00037808,2]
[335059274,1723800648059,-153.0,0.00037808,2]
[335059276,1723800648069,-153.0,0.00037808,2]
[335059278,1723800648079,-1379.81984135,0.00038,120]
[335059280,1723800648089,-294.8692653,0.00038356,2]
[335059282,1723800648098,-294.8692653,0.00038356,2]
[335059284,1723800648108,-294.8692653,0.00038356,2]
[335059286,1723800648118,-294.8692653,0.00038356,2]
[335059288,1723800648128,-294.8692653,0.00038356,2]
[335059290,1723800648138,-294.8692653,0.00038356,2]
[335059292,1723800648148,-294.8692653,0.00038356,2]
[335059294,1723800648160,-294.8692653,0.00038356,2]
[335059296,1723800648169,-294.8692653,0.00038356,2]
[335059298,1723800648179,-294.8692653,0.00038356,2]
[335059300,1723800648189,-294.8692653,0.00038356,2]
[335059302,1723800648199,-294.8692653,0.00038356,2]
[335059304,1723800648209,-294.8692653,0.00038356,2]
[335059306,1723800648219,-294.8692653,0.00038356,2]
[335059308,1723800648229,-294.8692653,0.00038356,2]
[335059310,1723800648239,-294.8692653,0.00038356,2]
[335059312,1723800648249,-589.673128,0.00038356,2]
[335059314,1723800648259,-294.8692653,0.00038356,2]
[335059316,1723800648269,-294.8692653,0.00038356,2]
[335059318,1723800648281,-294.8692653,0.00038356,2]
[335059320,1723800648300,-5007.33,0.000384,14]
[335059322,1723800648310,-4424.53,0.000384,14]
[335059324,1723800648322,-162.830916,0.00038795,2]
[335059326,1723800648332,-294.8692653,0.00039178,2]
[335059328,1723800648342,-294.8692653,0.00039178,2]
[335059330,1723800648354,-294.8692653,0.00039178,2]
[335059332,1723800648363,-294.8692653,0.00039178,2]
[335059334,1723800648373,-294.8692653,0.00039178,2]
[335059336,1723800648384,-500.0,0.00039552,5]
[335059338,1723800648394,-1000.0,0.00039678,5]
[335059340,1723800648403,-1007.8,0.0004,14]
[335059342,1723800648414,-2999.0876635,0.0004,120]
[335059344,1723800648423,-294.8692653,0.0004,2]
[335059346,1723800648433,-294.8692653,0.0004,2]
[335059348,1723800648443,-294.8692653,0.0004,2]
[335059350,1723800648453,-588.4904444,0.0004,2]
[335059352,1723800648463,-180.9466395,0.0004,2]
[335059354,1723800648472,-895.55920839,0.00040012,2]
[335059356,1723800648482,-306.0,0.00040959,2]
[335059358,1723800648491,-500.0,0.00041634,30]
[335059360,1723800648501,-1000.0,0.000418,60]
[335059362,1723800648513,-153.0,0.00041918,2]
[335059364,1723800648522,-153.0,0.00041918,2]
[335059366,1723800648532,-153.0,0.00041918,2]
[335059368,1723800648542,-153.0,0.00041918,2]
[335059370,1723800648552,-600.0,0.00041965,2]
[335059372,1723800648562,-1000.0,0.00042,14]
[335059374,1723800648572,-565.19032263,0.00042024,28]
[335059376,1723800648581,-450.00940063,0.000422,14]